fUST/lending_fUST_20260212
["ID","MTS","AMOUNT","RATE_DAILY","PERIOD"]
[405204164,1770905338428,-195.35412678,0.00023562,2]
[405204165,1770905351601,500.0,0.00013699,2]
[405204166,1770905403720,-95.068402,0.00023562,2]
[405204167,1770905403755,-500.0,0.00023566,2]
[405204168,1770905403794,-500.0,0.00023566,2]
[405204169,1770905403837,-790.0,0.00023566,2]
[405204170,1770905403878,-300.0,0.00023566,2]
[405204171,1770905403914,-511.26832022,0.00023567,2]
[405204172,1770905403952,-500.0,0.00023567,2]
[405204173,1770905403989,-500.0,0.00023567,2]
[405204174,1770905404023,-500.0,0.00023567,2]
[405204175,1770905404064,-500.0,0.00023567,2]
[405204176,1770905404102,-500.0,0.00023567,2]
[405204177,1770905404139,-500.0,0.00023567,2]
[405204178,1770905404176,-500.0,0.00023567,2]
[405204179,1770905404213,-500.0,0.00023567,2]
[405204180,1770905404249,-500.0,0.00023567,2]
[405204181,1770905404284,-500.0,0.00023567,2]
[405204182,1770905404320,-107.32655556,0.00023567,2]
[405204183,1770905404453,500.0,0.00013699,2]
[405204184,1770905410622,500.01422864,0.00013699,2]
[405204185,1770905410909,309.25869365,0.00013699,2]
[405204186,1770905411246,500.0,0.00013699,2]
[405204187,1770905411720,-342.2128281,0.00023558,10]
[405204188,1770905415185,-73.4571719,0.00023558,10]
[405204189,1770905415206,-576.54282806,0.00023561,2]
[405204190,1770905418182,-287.78254614,0.00023558,10]
[405204191,1770905418594,500.0,0.00013699,2]
[405204192,1770905421438,500.0,0.00013699,2]
[405204193,1770905421494,1000.0,0.00014247,2]
[405204194,1770905421713,405.30562702,0.00013273,2]
[405204195,1770905422281,-478.39104371,0.00023558,10]
[405204212,1770905432343,-26.48641015,0.00023558,10]
[405204214,1770905432353,-660.55,0.00023558,10]
[405204218,1770905432374,-213.45717194,0.00023561,2]
[405204220,1770905432383,-880.0,0.00023566,2]
[405204222,1770905432393,-392.67344444,0.00023567,2]
[405204224,1770905432403,-505.25263611,0.00023567,2]
[405204226,1770905432412,-500.0,0.00023567,2]
[405204228,1770905432422,-500.0,0.00023567,2]
[405204231,1770905432432,-500.0,0.00023567,2]
[405204234,1770905432441,-500.0,0.00023567,2]
[405204237,1770905432450,-500.0,0.00023567,2]
[405204240,1770905432460,-500.0,0.00023567,2]
[405204243,1770905432470,-500.0,0.00023567,2]
[405204246,1770905432479,-492.35902001,0.00023567,2]
[405204303,1770905438564,-550.46,0.00023558,10]
[405204321,1770905438725,-4289.75398269,0.00023566,2]
[405204495,1770905440596,-3e-08,0.00023566,2]
[405204496,1770905440612,-1951.41909113,0.00023566,2]
[405204497,1770905440624,-12209.15251635,0.00023566,2]
[405204498,1770905440634,-7.64097999,0.00023567,2]
[405204499,1770905440643,-500.0,0.00023567,2]
[405204500,1770905440653,-500.0,0.00023567,2]
[405204501,1770905440663,-448.20650366,0.00023567,2]
[405204799,1770905448188,-51.79349634,0.00023567,2]
[405204800,1770905448198,-458.68467254,0.00023567,2]
[405204801,1770905448209,-41.31532746,0.00023567,2]
[405204802,1770905448219,-500.0,0.00023567,2]
[405204803,1770905448228,-500.0,0.00023567,2]
[405204804,1770905448237,-500.0,0.00023567,2]
[405204805,1770905448250,-84.48386191,0.00023567,2]
[405204806,1770905448262,-415.51613809,0.00023567,2]
[405204807,1770905448272,-48.81315121,0.00023567,2]
[405204808,1770905462120,-1014.48540678,0.00023559,10]
[405204809,1770905464209,591.57015295,0.0002346,2]
[405204810,1770905515917,2080.9069575,0.0002352,2]
[405204811,1770905531493,5000.0,0.0002352,2]
[405204812,1770905553986,3457.25492602,0.0002352,2]
[405204813,1770905584305,-1384.89,0.00023557,10]
[405204814,1770905584333,-300.0,0.00023564,2]
[405204815,1770905584360,-500.0,0.00023565,2]
[405204816,1770905584390,-500.0,0.00023565,2]
[405204817,1770905584418,-500.0,0.00023565,2]
[405204818,1770905584448,-500.0,0.00023565,2]
[405204819,1770905584477,-500.0,0.00023565,2]
[405204820,1770905584506,-500.0,0.00023565,2]
[405204821,1770905584536,-500.0,0.00023565,2]
[405204822,1770905584563,-500.0,0.00023565,2]
[405204823,1770905584598,-500.0,0.00023565,2]
[405204824,1770905584627,-500.0,0.00023565,2]
[405204825,1770905584657,-130.22,0.00023565,2]
[405204826,1770905627046,65704.25,0.00023,2]
[405204827,1770905703986,500.0,0.00013273,2]
[405204828,1770905704045,1000.0,0.00013821,2]
[405204829,1770905704102,340.67069541,0.00014368,2]
[405204830,1770905708687,500.0,0.00013273,2]
[405204831,1770905708744,500.0,0.00013821,2]
[405204832,1770905767100,150.0,0.00017808,2]
[405204833,1770905767160,302.65121243,0.00018356,2]
[405204834,1770905767492,500.0,0.00013273,2]
[405204835,1770905767556,1000.0,0.00013821,2]
[405204836,1770905767614,253.03894278,0.00014368,2]
[405204837,1770905768415,404.86368601,0.00013273,2]
[405204838,1770905769441,500.0,0.00013699,2]
[405204839,1770905771303,641.02120773,0.00013699,2]
[405204840,1770905775075,500.35534999,0.00013699,2]
[405204841,1770905789331,500.0,0.00013273,2]
[405204842,1770905789391,587.57777081,0.00013821,2]
[405204843,1770905826773,500.0,0.00013699,2]
[405204844,1770905826850,500.61278183,0.00013699,2]
[405204845,1770905829492,500.0,0.00013699,2]
[405204846,1770905831366,500.0,0.00013273,2]
[405204847,1770905831490,500.0,0.00013699,2]
[405204848,1770905835959,500.0,0.00013699,2]
[405204849,1770905883588,160.53939707,0.00013699,2]
[405204850,1770906007494,484.93167027,0.00013273,2]
[405204851,1770906012445,365.79347951,0.00013273,2]
[405204858,1770906065798,591.40166708,0.00013699,2]
[405204859,1770906067856,500.0,0.00013699,2]
[405204860,1770906071076,500.0,0.00013273,2]
[405204861,1770906071106,534.90536496,0.00014368,2]
[405204862,1770906071133,1000.0,0.00013821,2]
[405204864,1770906123743,550.19085564,0.00013273,2]
[405204865,1770906226005,-604.45262344,0.00023551,10]
[405204867,1770906364879,1099.85534598,0.00013821,2]
[405204868,1770906364915,500.0,0.00013273,2]
[405204869,1770906370505,450.3420333,0.00013699,2]
[405204870,1770906377478,500.0,0.00013699,2]
[405204871,1770906384396,500.0,0.00013699,2]
[405204872,1770906384449,500.0,0.00014247,2]
[405204873,1770906385051,500.0,0.00013273,2]
[405204874,1770906385085,1003.05997947,0.00013821,2]
[405204875,1770906400096,500.0,0.00023287,2]
[405204876,1770906400265,500.0,0.00023342,2]
[405204877,1770906400453,500.0,0.00023397,2]
[405204878,1770906400594,150.0,0.00023287,2]
[405204879,1770906400626,500.0,0.00023451,2]
[405204880,1770906400702,152.15203815,0.00023287,2]
[405204881,1770906400731,150.0,0.00023342,2]
[405204882,1770906400778,500.0,0.00023506,2]
[405204883,1770906400934,211.09207566,0.00023397,2]
[405204884,1770906401618,150.0,0.00023287,2]
[405204885,1770906401958,150.0,0.00023342,2]
[405204886,1770906402109,240.16199324,0.00023397,2]
[405204887,1770906402375,163.31039812,0.00023287,2]
[405204888,1770906402859,500.0,0.00023287,2]
[405204889,1770906403003,531.20145437,0.00023342,2]
[405204890,1770906403434,150.0,0.00023287,2]
[405204891,1770906403671,150.0,0.00023342,2]
[405204892,1770906403977,216.21712909,0.00023397,2]
[405204894,1770906470931,11611.41569503,0.00023457,2]
[405204895,1770906505406,25884.03927591,0.00017,2]
[405204896,1770906507651,262.60420557,0.0002,7]
[405204897,1770906509830,597.1723494,0.000149,2]
[405204898,1770906513875,480.36178687,0.00021,2]
[405204900,1770906516602,6852.72093269,0.0001,2]
[405204901,1770906521110,7574.90522213,0.00019,2]
[405204903,1770906586630,-231.00000006,0.00023552,10]
[405204904,1770906588954,-801.62844904,0.00023551,10]
[405204905,1770906606376,500.0,0.00013699,2]
[405204911,1770906631522,-1158.8,0.00023552,10]
[405204912,1770906631534,-965.66,0.00023552,10]
[405204913,1770906631546,-1390.55,0.00023554,10]
[405204914,1770906631560,-302.64114771,0.00023555,2]
[405204915,1770906631572,-1668.67,0.00023556,10]
[405204916,1770906631583,-300.0,0.00023556,2]
[405204917,1770906631595,-300.0,0.00023556,2]
[405204918,1770906631606,-15.51672969,0.00023557,2]
[405205170,1770906639830,-259.17689277,0.00023557,2]
[405205172,1770906639841,-470.10118986,0.00023557,2]
[405205674,1770906645258,-29.89881014,0.00023557,2]
[405205676,1770906645269,-500.0,0.00023557,2]
[405205678,1770906645278,-500.0,0.00023557,2]
[405205680,1770906645287,-500.0,0.00023557,2]
[405205682,1770906645297,-500.0,0.00023557,2]
[405205684,1770906645307,-475.9189106,0.00023557,2]
[405205686,1770906645317,-500.0,0.00023557,2]
[405205688,1770906645331,-500.0,0.00023557,2]
[405205690,1770906645342,-278.36140401,0.00023557,2]
[405205692,1770906645353,-500.0,0.00023557,2]
[405205694,1770906645363,-500.0,0.00023557,2]
[405205696,1770906645373,-500.0,0.00023557,2]
[405205698,1770906645383,-500.0,0.00023557,2]
[405205700,1770906645392,-500.0,0.00023557,2]
[405205702,1770906645402,-500.0,0.00023557,2]
[405205704,1770906645412,-500.0,0.00023557,2]
[405205706,1770906645422,-462.93733559,0.00023557,2]
[405205708,1770906645432,-500.0,0.00023557,2]
[405205710,1770906645442,-159.61758434,0.00023557,2]
[405205712,1770906645454,-500.0,0.00023557,2]
[405205714,1770906645463,-500.0,0.00023557,2]
[405205716,1770906645473,-500.0,0.00023557,2]
[405205718,1770906645482,-500.0,0.00023557,2]
[405205720,1770906645491,-500.0,0.00023557,2]
[405205722,1770906645501,-500.0,0.00023557,2]
[405205724,1770906645510,-425.15787147,0.00023557,2]
[405205726,1770906645520,-500.0,0.00023557,2]
[405205728,1770906645530,-500.0,0.00023557,2]
[405205730,1770906645540,-500.0,0.00023557,2]
[405205732,1770906645551,-500.0,0.00023557,2]
[405205734,1770906645560,-500.0,0.00023557,2]
[405205736,1770906645569,-500.0,0.00023557,2]
[405205738,1770906645584,-500.0,0.00023557,2]
[405205740,1770906645595,-500.0,0.00023557,2]
[405205742,1770906645605,-500.0,0.00023557,2]
[405205744,1770906645619,-500.0,0.00023557,2]
[405205746,1770906645629,-500.0,0.00023557,2]
[405205748,1770906645639,-500.0,0.00023557,2]
[405205750,1770906645650,-500.0,0.00023557,2]
[405205752,1770906645660,-500.0,0.00023557,2]
[405205754,1770906645670,-500.0,0.00023557,2]
[405205756,1770906645681,-500.0,0.00023557,2]
[405205758,1770906645691,-500.0,0.00023557,2]
[405205760,1770906645701,-500.0,0.00023557,2]
[405205761,1770906645711,-500.0,0.00023557,2]
[405205762,1770906645720,-500.0,0.00023557,2]
[405205763,1770906645730,-500.0,0.00023557,2]
[405205764,1770906645739,-500.0,0.00023557,2]
[405205765,1770906645748,-500.0,0.00023557,2]
[405205766,1770906645758,-500.0,0.00023557,2]
[405205767,1770906645768,-500.0,0.00023557,2]
[405205768,1770906645777,-500.0,0.00023557,2]
[405205769,1770906645787,-500.0,0.00023557,2]
[405205770,1770906645796,-500.0,0.00023557,2]
[405205771,1770906645805,-500.0,0.00023557,2]
[405205772,1770906645815,-500.0,0.00023557,2]
[405205773,1770906645828,-500.0,0.00023557,2]
[405205774,1770906645837,-500.0,0.00023557,2]
[405205775,1770906645846,-500.0,0.00023557,2]
[405205776,1770906645857,-630.22602106,0.00023557,2]
[405205777,1770906645867,-500.0,0.00023557,2]
[405205778,1770906645877,-500.0,0.00023557,2]
[405205779,1770906645886,-500.0,0.00023557,2]
[405205780,1770906645896,-500.0,0.00023557,2]
[405205781,1770906645906,-500.0,0.00023557,2]
[405205782,1770906645916,-500.0,0.00023557,2]
[405205783,1770906645926,-500.0,0.00023557,2]
[405205784,1770906645936,-500.0,0.00023557,2]
[405205785,1770906645949,-500.0,0.00023557,2]
[405205786,1770906645959,-500.0,0.00023557,2]
[405205787,1770906645968,-500.0,0.00023557,2]
[405205788,1770906645978,-500.0,0.00023557,2]
[405205789,1770906645989,-500.0,0.00023557,2]
[405205790,1770906645999,-500.0,0.00023557,2]
[405205791,1770906646009,-500.0,0.00023557,2]
[405205792,1770906646019,-500.0,0.00023557,2]
[405205793,1770906646029,-500.0,0.00023557,2]
[405205794,1770906646038,-500.0,0.00023557,2]
[405205795,1770906646048,-500.0,0.00023557,2]
[405205796,1770906646059,-500.0,0.00023557,2]
[405205797,1770906646068,-500.0,0.00023557,2]
[405205798,1770906646081,-500.0,0.00023557,2]
[405205799,1770906646091,-500.0,0.00023557,2]
[405205800,1770906646101,-500.0,0.00023557,2]
[405205801,1770906646111,-500.0,0.00023557,2]
[405205802,1770906646120,-500.0,0.00023557,2]
[405205803,1770906646130,-500.0,0.00023557,2]
[405205804,1770906646140,-500.0,0.00023557,2]
[405205805,1770906646149,-487.02510189,0.00023557,2]
[405205806,1770906646158,-50000.0,0.00023558,2]
[405205807,1770906646167,-500.0,0.00023561,2]
[405205808,1770906646177,-500.0,0.00023562,2]
[405205809,1770906646186,-500.0,0.00023562,2]
[405205810,1770906646196,-500.0,0.00023562,2]
[405205811,1770906646205,-461.2101369,0.00023562,2]
[405205812,1770906646215,-500.0,0.00023564,2]
[405205813,1770906646225,-500.0,0.00023564,2]
[405205814,1770906646234,-500.0,0.00023566,2]
[405205815,1770906646243,-500.0,0.00023566,2]
[405205816,1770906646253,-500.0,0.00023566,2]
[405205818,1770906646261,-3778.0,0.00023568,2]
[405205820,1770906646271,-160.0,0.00023605,9]
[405205821,1770906646280,-500.0,0.00023616,2]
[405205823,1770906646290,-411.42803711,0.00023648,2]
[405205824,1770906646299,-353.25909796,0.00023648,2]
[405205825,1770906646309,-403.72468338,0.00023648,2]
[405205826,1770906646319,-500.0,0.00023671,2]
[405205827,1770906646329,-500.0,0.00023725,2]
[405205828,1770906646339,-160.0,0.00023756,9]
[405205829,1770906646349,-500.0,0.0002378,2]
[405205830,1770906646358,-500.0,0.00023835,2]
[405205831,1770906646368,-500.0,0.0002389,2]
[405205832,1770906646377,-1186.2932392,0.00023909,3]
[405205833,1770906646387,-500.0,0.00023945,2]
[405205834,1770906646396,-500.0,0.00023999,2]
[405205835,1770906646405,-185.36607728,0.00024046,2]
[405205836,1770906646415,-150.0,0.00024046,2]
[405205837,1770906646424,-231.08453337,0.00024046,2]
[405205838,1770906646434,-156.68204308,0.00024046,2]
[405205839,1770906646444,-280.07368748,0.00024046,2]
[405205841,1770906646453,-600.0,0.00024049,10]
[405205844,1770906646464,-300.0,0.00024049,10]
[405205846,1770906646473,-300.0,0.00024049,10]
[405205847,1770906646482,-300.0,0.00024049,10]
[405205848,1770906646492,-151.0,0.00024049,2]
[405205849,1770906646502,-500.0,0.00024054,2]
[405205850,1770906646511,-150.0,0.00024101,2]
[405205851,1770906646522,-500.0,0.00024109,2]
[405205852,1770906646532,-236.02022409,0.0002412,2]
[405205853,1770906646541,-200.0,0.00024156,2]
[405205854,1770906646552,-500.0,0.00024164,2]
[405205855,1770906646561,-605.96388153,0.00024219,2]
[405205856,1770906646572,-163.472108,0.0002432,2]
[405205857,1770906646581,-151.0,0.0002432,2]
[405205858,1770906646592,-658.83,0.000244,14]
[405205859,1770906646602,-160.0,0.0002452,11]
[405205860,1770906646611,-150.0,0.00024658,2]
[405205861,1770906646620,-150.0,0.00024713,2]
[405205862,1770906646630,-226.08154609,0.00024768,2]
[405205863,1770906646640,-294.88531462,0.000248,2]
[405205864,1770906646649,-500.0,0.00024898,2]
[405205865,1770906646659,-11567.228916,0.000249,2]
[405205866,1770906646668,-151.0,0.000249,2]
[405205867,1770906646678,-23134.457832,0.0002498,2]
[405205869,1770906646687,-589.77062924,0.0002498,2]
[405205870,1770906646696,-500.0,0.00024989,2]
[405205872,1770906646705,-500.0,0.00024989,2]
[405205873,1770906646715,-500.0,0.00024989,2]
[405205874,1770906646724,-500.0,0.00024989,2]
[405205875,1770906646734,-500.0,0.00024989,2]
[405205876,1770906646743,-59725.40547948,0.0002499,2]
[405205877,1770906646831,-7352.72850997,0.0002499,2]
[405205878,1770906646881,-3e-08,0.0002499,2]
[405205879,1770906647171,-804.72,0.00023558,10]
[405205880,1770906647181,-6775.56160191,0.0002499,2]
[405205884,1770906656303,190.874309,0.0001716,2]
[405205885,1770906656522,190.874309,0.00020837,2]
[405205886,1770906667710,500.22310915,0.00013699,2]
[405205887,1770906724900,500.95726796,0.00013699,2]
[405205888,1770906967157,5867.01,0.00023511,2]
[405205889,1770906968399,491.63744615,0.00021918,2]
[405205890,1770906971155,502.72911083,0.00013699,2]
[405205891,1770907013097,303.10001605,0.000189,2]
[405205892,1770907027598,248.158096,0.00023417,2]
[405205894,1770907039306,1451.47954475,0.00023511,2]
[405205895,1770907086203,223.23,0.00014386,10]
[405205896,1770907266879,500.0,0.00013699,2]
[405205897,1770907329910,508.26444344,0.00022741,2]
[405205900,1770907522738,259.75297652,0.00022427,2]
[405205901,1770907525265,429.77029295,0.00022741,2]
[405205902,1770907528077,1717.36209064,0.00022741,2]
[405205903,1770907530817,995.95758269,0.00022741,2]
[405205904,1770907633015,161.71514261,0.00022546,2]
[405205913,1770907806975,200.0,0.000195,2]
[405205914,1770907808007,200.0,0.000195,2]
[405205915,1770907808544,200.0,0.000196,2]
[405205916,1770907809090,200.0,0.000196,2]
[405205917,1770907809652,200.0,0.000197,2]
[405205918,1770907810647,200.0,0.000197,2]
[405205919,1770907812021,200.0,0.000197,2]
[405205920,1770907812585,200.0,0.000198,2]
[405205921,1770907813290,200.0,0.000198,2]
[405205922,1770907813921,200.0,0.000199,2]
[405205923,1770907814353,200.0,0.000199,2]
[405205924,1770907814903,200.0,0.000199,2]
[405205925,1770907815595,200.0,0.0002,2]
[405205926,1770907816607,200.0,0.0002,2]
[405205927,1770907817169,200.0,0.000201,2]
[405205928,1770907817842,200.0,0.000201,2]
[405205929,1770907818373,200.0,0.000201,2]
[405205930,1770907819291,200.0,0.000202,2]
[405205931,1770907820001,200.0,0.000202,2]
[405205932,1770907820670,200.0,0.000203,2]
[405205933,1770907821331,200.0,0.000203,2]
[405205934,1770907821743,200.0,0.000203,2]
[405205935,1770907822441,200.0,0.000204,2]
[405205936,1770907823178,200.0,0.000204,2]
[405205937,1770907824051,200.0,0.000205,2]
[405205938,1770907824899,200.0,0.000205,2]
[405205939,1770907825578,200.0,0.000205,2]
[405205940,1770907826196,200.0,0.000206,2]
[405205941,1770907826721,200.0,0.000206,2]
[405205942,1770907828285,200.0,0.000207,2]
[405205943,1770907828450,297.53864372,0.00022546,2]
[405205944,1770907828827,200.0,0.000207,2]
[405205945,1770907829477,200.0,0.000207,2]
[405205946,1770907830135,200.0,0.000208,2]
[405205947,1770907831005,200.0,0.000208,2]
[405205958,1770907831572,200.0,0.000209,2]
[405205964,1770907831738,-500.0,0.00023557,2]
[405205965,1770907831747,-500.0,0.00023557,2]
[405205966,1770907831756,-361.94,0.00023557,2]
[405205967,1770907831765,-296.58832475,0.00023563,2]
[405205968,1770907831775,-165.38233388,0.00023569,2]
[405205969,1770907831784,-1211.73369035,0.00023923,3]
[405205970,1770907831794,-300.0,0.00023935,2]
[405205971,1770907831803,-559.0,0.00023935,2]
[405205972,1770907831812,-436.12865239,0.00023936,2]
[405205973,1770907831822,-462.17973159,0.00023936,2]
[405205974,1770907831832,-162.54859284,0.00023936,2]
[405205975,1770907831843,-500.0,0.00023936,2]
[405205976,1770907831853,-350.40203954,0.00023936,2]
[405205977,1770907831862,-500.0,0.00023936,2]
[405205978,1770907831872,-500.0,0.00023936,2]
[405205979,1770907831882,-500.0,0.00023936,2]
[405205980,1770907831892,-405.98757523,0.00023936,2]
[405205981,1770907832256,200.0,0.000209,2]
[405205982,1770907832931,200.0,0.000209,2]
[405205983,1770907833918,200.0,0.00021,2]
[405205984,1770907834625,200.0,0.00021,2]
[405205985,1770907835064,200.0,0.000211,2]
[405205986,1770907835724,200.0,0.000211,2]
[405205987,1770907836252,200.0,0.000211,2]
[405205988,1770907836818,200.0,0.000212,2]
[405205989,1770907837394,200.0,0.000212,2]
[405206009,1770907837805,-359.29049751,0.00023569,2]
[405206011,1770907837815,-94.01242477,0.00023936,2]
[405206013,1770907837824,-500.0,0.00023936,2]
[405206015,1770907837834,-500.0,0.00023936,2]
[405206017,1770907837843,-500.0,0.00023936,2]
[405206019,1770907837852,-500.0,0.00023936,2]
[405206020,1770907837861,-300.0,0.00023936,2]
[405206022,1770907837871,-649.99999996,0.00024021,2]
[405206024,1770907837879,-190.874309,0.00024515,2]
[405206026,1770907837888,-2410.32729801,0.00024602,3]
[405206028,1770907837897,-192.28553572,0.00024876,2]
[405206030,1770907837907,-1473.73206447,0.00024877,2]
[405206034,1770907837935,200.0,0.000213,2]
[405206143,1770907839061,200.0,0.000213,2]
[405206199,1770907839613,200.0,0.000213,2]
[405206236,1770907839967,-351.48525876,0.00024877,2]
[405206272,1770907840275,200.0,0.000214,2]
[405206340,1770907840937,200.0,0.000214,2]
[405206492,1770907842699,200.0,0.000195,2]
[405206771,1770907845645,-828.82,0.00024877,2]
[405206773,1770907846061,-715.98068477,0.00024877,2]
[405206774,1770907846071,-938.31296011,0.00024877,2]
[405206787,1770907865372,500.0,0.00013273,2]
[405206797,1770908184577,152.29144567,0.000235,2]
[405206798,1770908411356,170.47248499,0.00021139,2]
[405206805,1770908521178,1500.0,0.00023511,2]
[405206806,1770908521769,-297.68820099,0.00023935,2]
[405206807,1770908521789,-185.61551359,0.00024409,2]
[405206808,1770908521799,-112.0726874,0.00024443,2]
[405206809,1770908521810,-51.2440952,0.00024443,2]
[405206810,1770908525233,500.0,0.00013699,2]
[405206811,1770908525288,589.96285206,0.00014247,2]
[405206812,1770908528225,500.0,0.00013699,2]
[405206813,1770908528283,1000.0,0.00014247,2]
[405206814,1770908528334,1500.0,0.00014795,2]
[405206815,1770908528608,155.38166569,0.00013699,2]
[405206816,1770908530544,500.0,0.00013699,2]
[405206817,1770908530611,534.40798224,0.00014247,2]
[405206818,1770908643083,1000.0,0.00014247,2]
[405206819,1770908643113,1004.73893852,0.00014795,2]
[405206820,1770908643256,236.851392,0.00013273,2]
[405206821,1770908650776,500.0,0.00013699,2]
[405206822,1770908722674,331.04197568,0.00013699,2]
[405206823,1770908726936,500.0,0.00013273,2]
[405206824,1770908727043,912.25381556,0.00013821,2]
[405206825,1770908731235,206.07868939,0.00013273,2]
[405206826,1770908731578,504.05990296,0.00013273,2]
[405206827,1770908735562,406.29500563,0.00023501,5]
[405206828,1770908755626,623.3751298,0.00023511,2]
[405206829,1770908768233,503.16088937,0.00013273,2]
[405206830,1770908769287,500.0,0.00013273,2]
[405206831,1770908769346,1000.0,0.00013821,2]
[405206832,1770908769396,1500.0,0.00014368,2]
[405206833,1770908769499,2000.0,0.00014916,2]
[405206834,1770908771007,503.04797727,0.00013273,2]
[405206835,1770908831069,502.60230823,0.00013699,2]
[405206836,1770908831432,238.71388037,0.00013699,2]
[405206837,1770908833686,439.63963557,0.00013273,2]
[405206842,1770908883926,156.26,0.00014386,2]
[405206843,1770909017930,444.04698874,0.00013699,2]
[405206883,1770909032037,-365.90668583,0.00023936,2]
[405206885,1770909032046,-295.12481552,0.00024116,2]
[405206887,1770909032061,-1034.30435261,0.00024295,3]
[405206888,1770909032071,-250.0,0.00024807,2]
[405206891,1770909032080,-325.73496847,0.00024853,2]
[405206892,1770909032091,-300.0,0.00024863,2]
[405206894,1770909032101,-250.65251742,0.00024864,2]
[405206896,1770909032110,-38.6187605,0.00024864,2]
[405206899,1770909032121,-335.5,0.00024864,2]
[405206977,1770909038038,-1950.37319521,0.00024864,2]
[405206995,1770909038215,-895.82363329,0.00024864,2]
[405206997,1770909038225,-481.17636671,0.00024864,10]
[405207172,1770909040107,-1200.0,0.00024872,2]
[405207174,1770909040118,-538.93355995,0.00024872,2]
[405207176,1770909040129,-300.0,0.00024873,2]
[405207178,1770909040141,-8655.41487011,0.00024874,2]
[405207185,1770909040211,-2050.07953336,0.00024874,2]
[405207187,1770909040225,-84156.22338498,0.00024874,2]
[405207190,1770909040236,-5976.05943391,0.000249,2]
[405207193,1770909040250,-947.25148338,0.000249,2]
[405207729,1770909046052,-1573.53553286,0.000249,2]
[405207730,1770909046088,-2600.18169515,0.000249,2]
[405207731,1770909046099,-8237.87832607,0.000249,2]
[405207732,1770909046109,-2032.59757237,0.00024915,3]
[405207733,1770909046119,-264.249184,0.00024991,2]
[405207734,1770909046128,-450.21047531,0.00025,2]
[405207735,1770909046138,-499.89155204,0.00025,2]
[405207736,1770909046148,-600.0,0.00025489,10]
[405207737,1770909046158,-150.0,0.00025675,2]
[405207738,1770909046167,-150.0,0.00025675,2]
[405207739,1770909046176,-150.0,0.00025675,2]
[405207740,1770909046185,-150.0,0.00025675,2]
[405207741,1770909046195,-150.0,0.00025675,2]
[405207742,1770909046204,-500.0,0.00025675,2]
[405207743,1770909046215,-150.0,0.00025675,2]
[405207744,1770909046224,-150.0,0.0002573,2]
[405207745,1770909046234,-150.0,0.0002573,2]
[405207746,1770909046243,-150.0,0.0002573,2]
[405207747,1770909046252,-150.0,0.0002573,2]
[405207748,1770909046262,-150.0,0.0002573,2]
[405207749,1770909046271,-500.0,0.0002573,2]
[405207750,1770909046282,-150.0,0.0002573,2]
[405207751,1770909046293,-275.22088959,0.00025785,2]
[405207752,1770909046301,-208.74534545,0.00025785,2]